bitfinex-derivatives/quotes_BTCF0:USTF0_20250703
["timestamp","ask_amount","ask_price","bid_price","bid_amount"]
[1751509312609,0.91424139,108800.0,108790.0,0.39412122]
[1751509312811,0.91424139,108800.0,108790.0,1.23500122]
[1751509314313,0.91424139,108800.0,108790.0,0.39412122]
[1751509315710,0.91424139,108800.0,108790.0,0.33907114]
[1751509317911,0.60424139,108800.0,108790.0,0.33907114]
[1751509318116,0.96424139,108800.0,108790.0,0.32964683]
[1751509318316,0.96424139,108800.0,108790.0,0.28370743]
[1751509318518,0.91424139,108800.0,108790.0,0.28370743]
[1751509321417,0.91424139,108800.0,108790.0,0.26844928]
[1751509321718,0.97424139,108800.0,108790.0,0.26844928]
[1751509323420,0.97424139,108800.0,108790.0,0.2316806]
[1751509324321,0.35348712,108800.0,108790.0,0.2316806]
[1751509324519,0.96424139,108800.0,108790.0,0.2316806]
[1751509326723,0.96424139,108800.0,108790.0,0.1857426]
[1751509327426,0.96424139,108800.0,108790.0,0.002]
[1751509328625,0.43451277,108790.0,108780.0,0.31805908]
[1751509328818,0.89911277,108790.0,108780.0,0.2756796]
[1751509329016,0.89911277,108790.0,108780.0,0.3216226]
[1751509330621,0.90011277,108790.0,108780.0,0.3220426]
[1751509331120,0.90111277,108790.0,108780.0,0.3250426]
[1751509331616,0.90111277,108790.0,108780.0,0.2790996]
[1751509331827,0.90134858,108790.0,108780.0,0.53008968]
[1751509332420,0.90134858,108790.0,108780.0,0.2790996]
[1751509332928,0.90134858,108790.0,108780.0,0.53008968]
[1751509333923,0.90134858,108790.0,108770.0,1.20536276]
[1751509333924,2.00925556,108790.0,108770.0,0.0136044]
[1751509334125,0.1837923,108770.0,108760.0,0.89369548]
[1751509334318,0.20028047,108770.0,108760.0,1.17468556]
[1751509334627,0.26318047,108770.0,108760.0,1.15468556]
[1751509334827,0.26318047,108770.0,108760.0,1.14468556]
[1751509335223,0.25618047,108770.0,108760.0,1.17468556]
[1751509335423,0.25618047,108770.0,108760.0,0.98369548]
[1751509335624,0.25618047,108770.0,108760.0,1.17468556]
[1751509335824,0.25618047,108770.0,108760.0,0.6757054]
[1751509335825,0.25718047,108770.0,108760.0,0.6757054]
[1751509336029,0.25718047,108770.0,108760.0,0.92674823]
[1751509336327,0.25718047,108770.0,108760.0,0.6457054]
[1751509336728,0.25818047,108770.0,108760.0,0.6457054]
[1751509337332,0.9217233,108770.0,108760.0,0.6457054]
[1751509338128,0.29068047,108770.0,108760.0,0.6457054]
[1751509338334,0.8717233,108770.0,108760.0,0.6457054]
[1751509340237,0.29068047,108770.0,108760.0,0.89674823]
[1751509340731,0.29068047,108770.0,108760.0,0.98674823]
[1751509340940,0.19528047,108770.0,108760.0,1.14564823]
[1751509341134,0.19528047,108770.0,108760.0,1.45564823]
[1751509342839,0.19528047,108770.0,108760.0,1.46957027]
[1751509343035,0.4463233,108770.0,108760.0,0.69252744]
[1751509343240,0.5107233,108770.0,108760.0,0.65962744]
[1751509343440,0.8407233,108770.0,108760.0,0.47582204]
[1751509343640,0.5107233,108770.0,108760.0,0.47582204]
[1751509343841,0.8807233,108770.0,108760.0,0.47582204]
[1751509345042,0.9124233,108770.0,108760.0,0.47582204]
[1751509346341,0.29138047,108770.0,108760.0,0.47582204]
[1751509346542,0.9024233,108770.0,108760.0,0.47582204]
[1751509348547,0.8724233,108770.0,108760.0,0.47582204]
[1751509348741,0.8724233,108770.0,108760.0,0.09320204]
[1751509349047,1.2332233,108770.0,108760.0,0.09320204]
[1751509349346,0.1838092,108760.0,108750.0,0.15940262]
[1751509349542,1.65983203,108760.0,108750.0,0.15940262]
[1751509349742,1.33983203,108760.0,108750.0,0.15940262]
[1751509350146,1.37123203,108760.0,108750.0,0.15940262]
[1751509350549,1.37223203,108760.0,108750.0,0.15940262]
[1751509350750,1.37323203,108760.0,108750.0,0.15940262]
[1751509351237,0.2801092,108760.0,108750.0,0.15940262]
[1751509351444,0.2801092,108760.0,108750.0,0.77124545]
[1751509351445,1.1221892,108760.0,108750.0,0.77124545]
[1751509351841,0.2801092,108760.0,108750.0,0.85284545]
[1751509352038,0.2801092,108760.0,108750.0,0.88554545]
[1751509352244,0.2801092,108760.0,108750.0,0.52020262]
[1751509357256,0.2801092,108760.0,108750.0,0.77124545]
[1751509357958,0.2801092,108760.0,108750.0,0.52020262]
[1751509358962,0.53115203,108760.0,108750.0,0.52020262]
[1751509359259,0.1838261,108750.0,108740.0,0.71196941]
[1751509359560,0.46586893,108750.0,108740.0,0.18696958]
[1751509359763,0.52936893,108750.0,108740.0,0.18696958]
[1751509360061,0.2783261,108750.0,108740.0,0.18696958]
[1751509360463,0.2803261,108750.0,108740.0,0.18696958]
[1751509361256,0.2803261,108750.0,108740.0,0.20107444]
[1751509362250,0.2813261,108750.0,108740.0,0.20107444]
[1751509362559,0.53236893,108750.0,108740.0,0.20107444]
[1751509363161,0.2813261,108750.0,108740.0,0.20107444]
[1751509364560,0.2813261,108750.0,108740.0,0.01723144]
[1751509366466,0.53236893,108750.0,108740.0,0.01723144]
[1751509368067,1.37480893,108750.0,108740.0,0.01723144]
[1751509368467,1.37380893,108750.0,108740.0,0.01410486]
[1751509368666,0.183843,108740.0,108730.0,0.96961506]
[1751509368969,0.35713348,108740.0,108730.0,1.10961506]
[1751509369365,0.37386671,108740.0,108730.0,0.85857223]
[1751509369561,0.62490954,108740.0,108730.0,0.75177714]
[1751509369766,0.62490954,108740.0,108730.0,0.61177714]
[1751509370068,0.62790954,108740.0,108730.0,0.61177714]
[1751509370471,0.37686671,108740.0,108730.0,0.61177714]
[1751509370768,0.37686671,108740.0,108730.0,0.42791724]
[1751509370965,0.62790954,108740.0,108730.0,0.39751724]
[1751509371271,0.96790954,108740.0,108730.0,0.5446599]
[1751509371570,0.96790954,108740.0,108730.0,0.3608]
[1751509371967,0.62790954,108740.0,108730.0,0.3608]
[1751509372170,0.37686671,108740.0,108730.0,0.3608]
[1751509372468,0.62790954,108740.0,108730.0,0.3608]
[1751509373076,0.97790954,108740.0,108730.0,0.3608]
[1751509373270,0.62790954,108740.0,108730.0,0.3608]
[1751509373672,0.62890954,108740.0,108730.0,0.3608]
[1751509373974,0.94890954,108740.0,108730.0,0.3608]
[1751509374169,0.1838599,108730.0,108720.0,0.39751724]
[1751509374367,1.73376273,108730.0,108720.0,0.3608]
[1751509374572,0.1838768,108720.0,108710.0,0.22373838]
[1751509374774,0.1838937,108710.0,108700.0,0.27783104]
[1751509374972,0.2799937,108710.0,108700.0,0.79278096]
[1751509375170,0.2799937,108710.0,108700.0,0.7774586]
[1751509375575,0.2799937,108710.0,108700.0,1.10850143]
[1751509375576,0.2149937,108710.0,108700.0,1.10850143]
[1751509376778,0.1838937,108710.0,108700.0,1.10850143]
[1751509376978,0.1918937,108710.0,108700.0,1.10850143]
[1751509378080,0.1918937,108710.0,108700.0,1.16590143]
[1751509379566,0.2241937,108710.0,108700.0,1.16590143]
[1751509380673,0.2241937,108710.0,108700.0,1.17984262]
[1751509381277,0.2565937,108710.0,108700.0,1.14654243]
[1751509381575,0.2565937,108710.0,108700.0,0.8954996]
[1751509381779,0.2565937,108710.0,108700.0,1.14654243]
[1751509383381,0.2565937,108710.0,108700.0,0.8954996]
[1751509383581,0.2565937,108710.0,108700.0,1.14654243]
[1751509383881,0.2565937,108710.0,108700.0,1.04244243]
[1751509384080,0.50763653,108710.0,108700.0,0.79139427]
[1751509384673,0.86843653,108710.0,108700.0,0.22139427]
[1751509385276,0.86843653,108710.0,108700.0,0.19783207]
[1751509385472,0.86843653,108710.0,108700.0,0.19784627]
[1751509385780,0.3678491,108700.0,108690.0,0.1839258]
[1751509385974,0.0941,108700.0,108690.0,0.5947258]
[1751509386280,0.1948937,108710.0,108700.0,0.1839106]
[1751509386478,0.1948937,108710.0,108700.0,1.06340713]
[1751509386678,0.011,108710.0,108700.0,1.59854996]
[1751509386878,0.3218621,108720.0,108710.0,0.1838937]
[1751509387083,0.3218621,108720.0,108710.0,0.93573653]
[1751509388383,0.3218621,108720.0,108710.0,1.24573653]
[1751509388585,0.3218621,108720.0,108710.0,0.93573653]
[1751509388986,0.3218621,108720.0,108710.0,1.30573653]
[1751509389184,0.3218621,108720.0,108710.0,1.55573653]
[1751509389484,0.3218621,108720.0,108710.0,1.24573653]
[1751509389687,0.3218621,108720.0,108710.0,1.56573653]
[1751509389882,0.68194001,108740.0,108730.0,0.1838599]
[1751509390079,0.43771793,108740.0,108730.0,0.48490273]
[1751509390284,0.43771793,108740.0,108720.0,1.61009539]
[1751509390285,0.1838599,108730.0,108720.0,1.75942289]
[1751509390482,1.16970273,108730.0,108720.0,0.01507236]
[1751509390681,0.9186599,108730.0,108720.0,0.19894916]
[1751509390881,1.16970273,108730.0,108720.0,0.19894916]
[1751509391078,0.1838768,108720.0,108710.0,0.15170006]
[1751509391283,0.89071963,108720.0,108710.0,0.15170006]
[1751509391484,0.89071963,108720.0,108710.0,0.10572736]
[1751509391884,0.91232204,108720.0,108710.0,0.10572736]
[1751509393791,0.89071963,108720.0,108710.0,0.10572736]
[1751509393994,0.90071963,108720.0,108710.0,0.10572736]
[1751509394791,0.90471963,108720.0,108710.0,0.10572736]
[1751509395897,0.92633895,108720.0,108710.0,0.10572736]
[1751509397396,0.1838937,108710.0,108700.0,1.43706466]
[1751509397599,0.6065937,108710.0,108700.0,1.56706466]
[1751509398700,0.6085937,108710.0,108700.0,0.71826466]
[1751509399202,0.6165937,108710.0,108700.0,0.71826466]
[1751509399597,0.6085937,108710.0,108700.0,0.71826466]
[1751509399899,0.64022801,108710.0,108700.0,0.32929283]
[1751509400701,0.63822801,108710.0,108700.0,0.32929283]
[1751509400997,0.64122801,108710.0,108700.0,0.32929283]
[1751509402401,0.89227084,108710.0,108700.0,0.21302893]
[1751509402599,1.74043084,108710.0,108700.0,0.02911833]
[1751509402794,2.07043084,108710.0,108700.0,0.02911833]
[1751509404004,2.07043084,108710.0,108700.0,0.0137218]
[1751509405198,0.90133971,108710.0,108700.0,0.02893716]
[1751509405404,2.07021971,108710.0,108700.0,0.02893716]
[1751509405907,0.52693193,108700.0,108690.0,0.2299017]
[1751509406201,0.1839275,108690.0,108680.0,0.1839303]
[1751509406402,0.87940464,108690.0,108680.0,0.1833303]
[1751509406599,1.01735774,108690.0,108670.0,0.40440834]
[1751509406797,0.95535774,108690.0,108680.0,0.1839323]
[1751509406998,1.31615774,108690.0,108680.0,0.1839323]
[1751509407202,0.1839444,108680.0,108670.0,0.23900488]
[1751509407402,0.81223899,108680.0,108670.0,0.1839548]
[1751509407704,0.81223899,108680.0,108670.0,0.6439548]
[1751509407903,0.56119616,108680.0,108670.0,0.6439548]
[1751509408712,0.56119616,108680.0,108670.0,0.89499763]
[1751509409011,0.56619616,108680.0,108670.0,0.6439548]
[1751509409412,0.64040677,108680.0,108670.0,0.6439548]
[1751509410212,0.64140677,108680.0,108670.0,0.6439548]
[1751509410709,0.64140677,108680.0,108670.0,0.1839548]
[1751509411106,0.1839614,108670.0,108660.0,0.25449876]
[1751509411302,0.5447614,108670.0,108660.0,0.78034726]
[1751509411508,0.5447614,108670.0,108660.0,1.03139009]
[1751509412613,0.5487614,108670.0,108660.0,1.03139009]
[1751509413013,0.5487614,108670.0,108660.0,0.78034726]
[1751509413414,0.5487614,108670.0,108660.0,1.03139009]
[1751509413718,0.5487614,108670.0,108660.0,1.08139009]
[1751509415805,0.5487614,108670.0,108660.0,1.40139009]
[1751509416011,0.5487614,108670.0,108660.0,1.08139009]
[1751509416712,0.5487614,108670.0,108660.0,0.83034726]
[1751509416916,0.5487614,108670.0,108660.0,1.08139009]
[1751509417313,0.5487614,108670.0,108660.0,1.03139009]
[1751509417515,0.5487614,108670.0,108660.0,0.77117777]
[1751509417817,0.5487614,108670.0,108660.0,1.0363613]
[1751509418317,0.5487614,108670.0,108660.0,1.0222206]
[1751509418515,0.5487614,108670.0,108660.0,1.03636073]
[1751509419219,0.5487614,108670.0,108660.0,0.30040013]
[1751509419421,0.83010423,108670.0,108660.0,0.0293573]
[1751509419621,0.83010423,108670.0,108660.0,0.2133356]
[1751509421010,0.5790614,108670.0,108660.0,0.2133356]
[1751509421416,0.5790614,108670.0,108660.0,0.2135147]
[1751509423316,0.83010423,108670.0,108660.0,0.2135147]
[1751509424322,0.83921552,108670.0,108660.0,0.2135147]
[1751509424622,0.83921552,108670.0,108660.0,0.21350159]
[1751509424818,0.83010423,108670.0,108660.0,0.21350159]
[1751509425224,0.89240423,108670.0,108660.0,0.21350159]
[1751509426727,0.90143804,108670.0,108660.0,0.19828442]
[1751509428325,0.90343804,108670.0,108660.0,0.19828442]
[1751509430226,0.89440423,108670.0,108660.0,0.19828442]
[1751509431026,0.6433614,108670.0,108660.0,0.19828442]
[1751509431327,1.4907614,108670.0,108660.0,0.19828442]
[1751509431525,1.51255301,108670.0,108660.0,0.19828442]
[1751509432228,1.4907614,108670.0,108660.0,0.19828442]
[1751509432428,1.51235251,108670.0,108660.0,0.19828442]
[1751509433829,0.66495251,108670.0,108660.0,0.19828442]
[1751509435927,0.66495251,108670.0,108660.0,0.19809667]
[1751509436526,0.66495241,108670.0,108660.0,0.5691395]
[1751509436726,0.48099111,108670.0,108660.0,0.9891395]
[1751509436942,0.66495241,108670.0,108660.0,0.9891395]
[1751509437235,0.66495241,108670.0,108660.0,1.0291395]
[1751509437730,0.66495241,108670.0,108660.0,1.0391395]
[1751509438032,0.48099111,108670.0,108660.0,1.0391395]
[1751509438330,0.48099111,108670.0,108660.0,1.1491395]
[1751509438531,0.48099111,108670.0,108660.0,1.4398795]
[1751509438928,0.48099111,108670.0,108660.0,1.8798795]
[1751509440021,0.48099111,108670.0,108660.0,2.1198795]
[1751509440228,0.48099111,108670.0,108660.0,2.1337795]
[1751509440426,0.48099111,108670.0,108660.0,2.14891332]
[1751509440828,0.43501061,108680.0,108670.0,0.1839614]
[1751509441034,0.43501061,108680.0,108670.0,1.0065226]
[1751509441230,0.43501061,108680.0,108670.0,1.14167388]
[1751509441430,0.43501061,108680.0,108670.0,0.8965226]
[1751509441729,0.07421061,108680.0,108670.0,1.31167388]
[1751509441934,0.4569,108690.0,108680.0,0.1839444]
[1751509442233,0.6075275,108690.0,108680.0,1.8459456]
[1751509442534,0.6075275,108690.0,108680.0,1.8559456]
[1751509443033,0.4236,108690.0,108680.0,1.8800456]
[1751509443233,0.4236,108690.0,108680.0,2.06982723]
[1751509443629,0.4236,108690.0,108680.0,1.78982723]
[1751509443836,0.3608,108690.0,108680.0,2.12497851]
[1751509444335,0.6408246,108700.0,108690.0,0.1839275]
[1751509444528,0.4569,108700.0,108690.0,0.87497033]
[1751509444836,0.4569,108700.0,108690.0,1.38601316]
[1751509445037,0.4569,108700.0,108690.0,1.15917033]
[1751509445335,0.6408106,108700.0,108690.0,0.99917033]
[1751509445535,0.6408106,108700.0,108690.0,1.00822155]
[1751509445725,0.4569,108700.0,108690.0,1.06337283]
[1751509446335,0.4569,108700.0,108690.0,1.00822155]
[1751509446534,0.37770774,108710.0,108700.0,0.1839106]
[1751509446738,0.65740234,108710.0,108700.0,1.35143343]
[1751509447232,0.47350774,108710.0,108700.0,1.35143343]
[1751509447534,0.65740144,108710.0,108700.0,1.35143343]
[1751509448035,0.66640144,108710.0,108700.0,1.35243343]
[1751509448938,0.67040144,108710.0,108700.0,1.43243343]
[1751509451736,0.67040144,108710.0,108700.0,1.42243343]
[1751509452435,0.5576937,108710.0,108700.0,1.74243343]
[1751509452640,0.6521937,108710.0,108700.0,1.74243343]
[1751509454438,0.4683,108710.0,108700.0,1.74243343]
[1751509454638,0.6521937,108710.0,108700.0,1.74243343]
[1751509455141,0.6521937,108710.0,108700.0,1.35243343]
[1751509457041,0.6521937,108710.0,108700.0,1.35147343]
[1751509458343,0.6521937,108710.0,108700.0,0.43595343]
[1751509458533,0.6521937,108710.0,108700.0,1.28143343]
[1751509458741,0.6521937,108710.0,108700.0,1.28119343]
[1751509459443,0.6521937,108710.0,108700.0,0.43595343]
[1751509459637,0.90323653,108710.0,108700.0,1.0301506]
[1751509460036,0.90323653,108710.0,108700.0,0.1849106]
[1751509460241,0.5168937,108710.0,108700.0,1.0300306]
[1751509460540,0.76793653,108710.0,108700.0,0.1849106]
[1751509463747,0.86243653,108710.0,108700.0,0.1849106]
[1751509464442,0.50163653,108710.0,108700.0,0.1849106]
[1751509464645,0.86243653,108710.0,108700.0,0.1849106]
[1751509465447,0.88402945,108710.0,108700.0,0.1849106]
[1751509466543,0.63298662,108710.0,108700.0,0.43595343]
[1751509471646,0.63298662,108710.0,108700.0,0.48595343]
[1751509473349,0.27218662,108710.0,108700.0,0.48595343]
[1751509473644,0.20908662,108710.0,108700.0,0.93110471]
[1751509473846,0.02159292,108710.0,108700.0,1.54360471]
[1751509474041,0.3681243,108720.0,108710.0,0.1838937]
[1751509474243,0.34381104,108720.0,108710.0,1.0101916]
[1751509474442,0.34381104,108720.0,108710.0,1.0618916]
[1751509474644,0.34381104,108720.0,108710.0,2.0980116]
[1751509474843,0.34381104,108720.0,108710.0,1.4380116]
[1751509475046,0.34381104,108720.0,108710.0,1.4863116]
[1751509475249,0.34781104,108720.0,108710.0,1.4073116]
[1751509477446,0.34781104,108720.0,108710.0,1.15626877]
[1751509477745,0.34781104,108720.0,108710.0,1.4073116]
[1751509478142,0.34781104,108720.0,108710.0,1.4083116]
[1751509478342,0.35381104,108720.0,108710.0,1.5201116]
[1751509481055,0.35381104,108720.0,108710.0,1.5301116]
[1751509485354,0.35381104,108720.0,108710.0,1.5201116]
[1751509485854,0.35381104,108720.0,108710.0,1.5401116]
[1751509486754,0.35381104,108720.0,108710.0,1.5201116]
[1751509487756,0.35381104,108720.0,108710.0,1.5401116]
[1751509487955,0.03165684,108720.0,108710.0,2.70195443]
[1751509488155,0.01,108720.0,108710.0,3.05247371]
[1751509488355,0.37358141,108740.0,108730.0,0.1838599]
[1751509488554,0.39523799,108740.0,108730.0,1.81030273]
[1751509488760,0.39523799,108740.0,108730.0,1.48030273]
[1751509488961,0.39523799,108740.0,108730.0,1.12888637]
[1751509489357,0.39523799,108740.0,108730.0,1.3799292]
[1751509489556,0.37358141,108740.0,108730.0,1.3799292]
[1751509489857,0.37358141,108740.0,108730.0,1.00880637]
[1751509489858,0.62462424,108740.0,108730.0,1.00880637]
[1751509490049,0.99242424,108740.0,108730.0,0.16448637]
[1751509490255,1.01408468,108740.0,108730.0,0.16448637]
[1751509490456,1.38008468,108740.0,108730.0,0.16548637]
[1751509491155,1.35435145,108740.0,108730.0,0.16448637]
[1751509491455,1.35435145,108740.0,108730.0,0.16548637]
[1751509491456,1.10630862,108740.0,108730.0,0.16548637]
[1751509491656,1.35735145,108740.0,108730.0,0.16548637]
[1751509492557,1.36672881,108740.0,108730.0,0.16548637]
[1751509494253,1.11568598,108740.0,108730.0,0.16548637]
[1751509494459,1.36672881,108740.0,108730.0,0.16548637]
[1751509497360,1.36672881,108740.0,108730.0,0.002]
[1751509497853,1.36672881,108740.0,108730.0,0.1858601]
[1751509498055,1.33672881,108740.0,108730.0,0.1858601]
[1751509498350,1.00672881,108740.0,108730.0,0.1858601]
[1751509500560,0.2758113,108730.0,108720.0,0.29700923]
[1751509500860,0.36127174,108730.0,108720.0,0.51773573]
[1751509501059,0.183877,108720.0,108710.0,0.69981356]
[1751509501269,0.52731983,108720.0,108710.0,0.16991137]
[1751509501453,0.52731983,108720.0,108710.0,0.21588437]
[1751509501762,0.88811983,108720.0,108710.0,0.21588437]
[1751509502151,0.65876156,108720.0,108710.0,0.21588437]
[1751509503262,0.65976156,108720.0,108710.0,0.21588437]
[1751509503463,0.65876156,108720.0,108710.0,0.21588437]
[1751509503666,0.65876156,108720.0,108710.0,0.4669272]
[1751509503959,0.66176156,108720.0,108710.0,0.7489272]
[1751509504265,0.66676156,108720.0,108710.0,0.5289272]
[1751509505359,0.66676156,108720.0,108710.0,0.7689272]
[1751509506159,0.192877,108720.0,108710.0,1.5197272]
[1751509506458,0.71116928,108740.0,108730.0,0.1838601]
[1751509506663,0.76454824,108740.0,108730.0,1.19490293]
[1751509506862,0.79754824,108740.0,108730.0,1.19490293]
[1751509507160,0.70562424,108740.0,108730.0,0.51490293]
[1751509507465,0.34482424,108740.0,108730.0,1.58800293]
[1751509507759,0.32313368,108740.0,108730.0,1.64306512]
[1751509507959,0.33813368,108740.0,108730.0,1.64506512]
[1751509509065,0.27343368,108740.0,108730.0,1.64506512]
[1751509509264,0.26743368,108740.0,108730.0,1.64406512]
[1751509509459,0.26943368,108740.0,108730.0,1.58900293]
[1751509509661,0.08559048,108740.0,108730.0,1.58900293]
[1751509509861,0.08559048,108740.0,108730.0,1.64406512]
[1751509510366,0.07659048,108740.0,108730.0,1.58900293]
[1751509510967,0.07659048,108740.0,108730.0,1.59825437]
[1751509514462,0.3608,108750.0,108740.0,0.1838432]
[1751509514763,0.3608,108750.0,108740.0,1.88774306]
[1751509514970,0.3608,108750.0,108740.0,1.85774306]
[1751509515169,0.5446263,108750.0,108740.0,1.85774306]
[1751509515570,0.5516263,108750.0,108740.0,1.85874306]
[1751509516169,0.007,108750.0,108740.0,1.91954306]
[1751509516373,0.007,108750.0,108740.0,2.40954306]
[1751509516667,0.007,108750.0,108740.0,1.82954306]
[1751509516872,0.007,108750.0,108740.0,2.40954306]
[1751509517366,0.007,108750.0,108740.0,2.21954306]
[1751509517571,0.007,108750.0,108740.0,2.40954306]
[1751509517973,0.07996766,108750.0,108740.0,2.40954306]
[1751509518776,0.26379396,108750.0,108740.0,2.22954306]
[1751509518964,0.07996766,108750.0,108740.0,1.91954306]
[1751509519171,0.10155437,108750.0,108740.0,1.91954306]
[1751509519474,0.07996766,108750.0,108740.0,1.91954306]
[1751509519970,0.28538775,108750.0,108740.0,1.80954306]
[1751509521364,0.28538775,108750.0,108740.0,1.86954306]
[1751509521874,0.28538775,108750.0,108740.0,1.88954306]
[1751509522079,0.28538775,108750.0,108740.0,1.80954306]
[1751509522675,0.28538775,108750.0,108740.0,0.96534306]
[1751509522875,0.28538775,108750.0,108740.0,1.80854306]
[1751509523079,0.31708775,108750.0,108740.0,1.80854306]
[1751509525373,0.31708775,108750.0,108740.0,0.45074306]
[1751509525574,0.92893058,108750.0,108740.0,0.19970023]
[1751509525778,0.92893058,108750.0,108740.0,1.04318023]
[1751509525981,0.67788775,108750.0,108740.0,1.32422306]
[1751509527379,0.67788775,108750.0,108740.0,1.74502306]
[1751509527380,0.13326145,108750.0,108740.0,1.74502306]
[1751509527581,0.13326145,108750.0,108740.0,2.34502306]
[1751509527773,0.13326145,108750.0,108740.0,2.23912306]
[1751509528681,0.10156145,108750.0,108740.0,2.23912306]
[1751509528982,0.10156145,108750.0,108740.0,1.98808023]
[1751509529182,0.10156145,108750.0,108740.0,2.46912306]
[1751509529383,0.10156145,108750.0,108740.0,2.24912306]
[1751509530284,0.10156145,108750.0,108740.0,2.43912306]
[1751509530784,0.28538775,108750.0,108740.0,1.68502306]
[1751509531083,0.31848775,108750.0,108740.0,1.68502306]
[1751509531684,0.31848775,108750.0,108740.0,0.84154306]
[1751509531884,0.31848775,108750.0,108740.0,0.56050023]
[1751509532084,0.31848775,108750.0,108740.0,1.40450023]
[1751509532786,0.34978775,108750.0,108740.0,1.40450023]
[1751509533877,0.34978775,108750.0,108740.0,1.65554306]
[1751509535387,0.34978775,108750.0,108740.0,1.40450023]
[1751509535589,0.96163058,108750.0,108740.0,0.19970023]
[1751509535790,0.96163058,108750.0,108740.0,1.04354023]
[1751509536585,0.71058775,108750.0,108740.0,1.04354023]
[1751509538490,0.71058775,108750.0,108740.0,1.04382023]
[1751509540093,0.71058775,108750.0,108740.0,1.29486306]
[1751509541189,0.71058775,108750.0,108740.0,1.04382023]
[1751509541391,0.71058775,108750.0,108740.0,1.29486306]
[1751509545790,0.71058775,108750.0,108740.0,1.39486306]
[1751509548097,0.71058775,108750.0,108740.0,1.14382023]
[1751509548298,0.71058775,108750.0,108740.0,1.39486306]
[1751509551501,0.71058775,108750.0,108740.0,1.14382023]
[1751509551695,0.71058775,108750.0,108740.0,1.39486306]
[1751509558605,0.71058775,108750.0,108740.0,1.14382023]
[1751509558805,0.71058775,108750.0,108740.0,1.39486306]
[1751509560409,0.71058775,108750.0,108740.0,1.44992525]
[1751509562008,0.71058775,108750.0,108740.0,1.19888242]
[1751509562208,0.71058775,108750.0,108740.0,1.44992525]
[1751509562808,0.71058775,108750.0,108740.0,0.60580525]
[1751509563010,0.71058775,108750.0,108740.0,1.44940525]
[1751509564410,0.71058775,108750.0,108740.0,1.19836242]
[1751509564605,0.71058775,108750.0,108740.0,1.44940525]
[1751509565616,0.71058775,108750.0,108740.0,1.19836242]
[1751509565911,0.74098775,108750.0,108740.0,1.44940525]
[1751509567012,0.74098775,108750.0,108740.0,1.39434306]
[1751509567214,0.74098775,108750.0,108740.0,1.39466306]
[1751509568510,0.74098775,108750.0,108740.0,1.14362023]
[1751509568710,0.74098775,108750.0,108740.0,1.39466306]
[1751509569713,0.38018775,108750.0,108740.0,1.67466306]
[1751509570014,0.10156145,108750.0,108740.0,2.47052525]
[1751509570214,0.10156145,108750.0,108740.0,2.53612525]
[1751509570515,0.10156145,108750.0,108740.0,2.44106306]
[1751509570917,0.09856145,108750.0,108740.0,2.44106306]
[1751509571216,0.09756145,108750.0,108740.0,2.44006306]
[1751509571817,0.28138775,108750.0,108740.0,2.44006306]
[1751509572116,0.09756145,108750.0,108740.0,2.44006306]
[1751509576817,0.09756145,108750.0,108740.0,2.41006306]
[1751509577018,0.28138775,108750.0,108740.0,0.63810525]
[1751509577320,0.64218775,108750.0,108740.0,0.19870023]
[1751509577529,0.64218775,108750.0,108740.0,0.01485703]
[1751509577530,1.31913058,108750.0,108740.0,0.01485703]
[1751509577717,1.31913058,108750.0,108740.0,0.19870023]
[1751509578718,1.31813058,108750.0,108740.0,0.19870023]
[1751509578929,1.32013058,108750.0,108740.0,0.19870023]
[1751509579626,1.32013058,108750.0,108740.0,0.19970023]
[1751509579823,1.06908775,108750.0,108740.0,0.45074306]
[1751509580127,0.37828775,108750.0,108740.0,0.48074306]
[1751509580429,0.37828775,108750.0,108740.0,0.49074306]
[1751509580630,0.37828775,108750.0,108740.0,0.81074306]
[1751509580931,0.37828775,108750.0,108740.0,1.56744306]
[1751509581430,0.37828775,108750.0,108740.0,1.34744306]
[1751509581431,0.09856145,108750.0,108740.0,1.34744306]
[1751509581622,0.09856145,108750.0,108740.0,1.61250525]
[1751509582023,0.09894201,108750.0,108740.0,1.61250525]
[1751509585830,0.09894201,108750.0,108740.0,1.55744306]
[1751509590138,0.09894201,108750.0,108740.0,1.61250525]
[1751509591338,0.07696766,108750.0,108740.0,1.61250525]
[1751509591642,0.003,108760.0,108750.0,0.1838263]
[1751509591836,0.003,108760.0,108750.0,2.83156322]
[1751509592135,0.0322,108770.0,108750.0,2.78559892]
[1751509592338,0.05447921,108770.0,108760.0,0.79565223]
[1751509592544,0.05447921,108770.0,108760.0,1.65460633]
[1751509592737,0.02227921,108770.0,108760.0,1.35460633]
[1751509592936,0.02227921,108770.0,108760.0,1.64460633]
[1751509593137,0.0951,108780.0,108770.0,0.1837925]
[1751509593341,0.2788756,108780.0,108770.0,1.42831533]
[1751509593641,0.2788756,108780.0,108770.0,1.39831533]
[1751509593940,0.35189246,108780.0,108770.0,1.39831533]
[1751509594243,0.35789246,108780.0,108770.0,1.39931533]
[1751509595039,0.36189246,108780.0,108770.0,1.39931533]
[1751509596438,0.36189246,108780.0,108770.0,1.45931533]
[1751509597039,0.36189246,108780.0,108770.0,1.77931533]
[1751509597342,0.36189246,108780.0,108770.0,1.47931533]
[1751509597544,0.36189246,108780.0,108770.0,1.45931533]
[1751509597747,0.36189246,108780.0,108770.0,0.61583533]
[1751509598037,0.36189246,108780.0,108770.0,1.45875533]
[1751509599144,1.29373529,108780.0,108770.0,0.001]
[1751509599343,1.31024001,108780.0,108770.0,0.1847925]
[1751509601454,1.31024001,108780.0,108770.0,0.001]
[1751509601640,1.31024001,108780.0,108770.0,0.1847925]
[1751509603150,1.31024001,108780.0,108770.0,0.001]
[1751509604053,0.1837925,108770.0,108760.0,0.0149541]
[1751509604357,1.24039661,108770.0,108760.0,0.0149541]
[1751509604854,0.98935378,108770.0,108760.0,0.0017841]
[1751509605054,1.24039661,108770.0,108760.0,0.0017841]
[1751509605356,0.3216903,108760.0,108750.0,0.0459555]
[1751509605551,1.15715158,108760.0,108750.0,0.0459555]
[1751509605945,1.15715158,108760.0,108750.0,0.2297719]
[1751509606147,0.1838263,108750.0,108740.0,2.65587272]
[1751509606352,0.2458263,108750.0,108740.0,2.72587272]
[1751509606856,0.2458263,108750.0,108740.0,2.72583272]
[1751509607647,0.2468263,108750.0,108740.0,2.72583272]
[1751509608457,0.2478263,108750.0,108740.0,2.72583272]
[1751509608656,0.2518263,108750.0,108740.0,2.72683272]
[1751509610158,0.2518263,108750.0,108740.0,1.45602049]
[1751509613462,0.27392024,108750.0,108740.0,1.45602049]
[1751509616063,0.27392024,108750.0,108740.0,1.74602049]
[1751509616758,0.27392024,108750.0,108740.0,1.45602049]
[1751509617269,0.24382024,108750.0,108740.0,2.12682049]
[1751509617463,0.24382024,108750.0,108740.0,1.81682049]
[1751509617957,0.27692024,108750.0,108740.0,1.81682049]
[1751509618569,0.2548263,108750.0,108740.0,1.81682049]
[1751509619263,0.2548263,108750.0,108740.0,2.09682049]
[1751509619469,0.2548263,108750.0,108740.0,1.81682049]
[1751509621176,0.2871263,108750.0,108740.0,1.81682049]
[1751509622367,0.2871263,108750.0,108740.0,1.56577766]
[1751509622564,0.2871263,108750.0,108740.0,0.45097989]
[1751509622765,0.2871263,108750.0,108740.0,1.04257706]